bitfinex/quotes_BTCUSD_20250614
["timestamp","ask_amount","ask_price","bid_price","bid_amount"]
[1749880155491,0.50671797,105400.0,105390.0,0.47928579]
[1749880155698,0.50671797,105400.0,105390.0,0.49706454]
[1749880155949,0.50671797,105400.0,105390.0,0.47928579]
[1749880156359,0.50671797,105400.0,105390.0,0.49706443]
[1749880157173,0.50671797,105400.0,105390.0,0.49706442]
[1749880157379,0.50671797,105400.0,105390.0,0.4970643]
[1749880157830,0.50671797,105400.0,105390.0,0.49706431]
[1749880158175,0.50671797,105400.0,105390.0,0.47928579]
[1749880158615,0.50671797,105400.0,105390.0,0.49706418]
[1749880158824,0.50671797,105400.0,105390.0,0.34374418]
[1749880159026,0.56125797,105400.0,105390.0,0.47916579]
[1749880159244,0.56125797,105400.0,105390.0,0.49694418]
[1749880159673,0.56125797,105400.0,105390.0,0.47916579]
[1749880159890,0.56125797,105400.0,105390.0,0.49694407]
[1749880160733,0.56125797,105400.0,105390.0,0.49694391]
[1749880161066,0.56125797,105400.0,105390.0,0.49694395]
[1749880161780,0.56125797,105400.0,105390.0,0.47916579]
[1749880162724,0.56125797,105400.0,105390.0,0.49694374]
[1749880163397,0.56125797,105400.0,105390.0,0.47916579]
[1749880163827,0.56125797,105400.0,105390.0,0.49694377]
[1749880164030,0.56120097,105400.0,105390.0,0.49694376]
[1749880164231,0.56120097,105400.0,105390.0,0.47916579]
[1749880164428,0.56120097,105400.0,105390.0,0.49694389]
[1749880165025,0.070683,105400.0,105390.0,0.59309311]
[1749880165246,0.54590097,105400.0,105390.0,0.59309311]
[1749880165468,0.54590097,105400.0,105390.0,0.47916579]
[1749880165825,0.54590097,105400.0,105390.0,0.49694427]
[1749880166027,0.54590097,105400.0,105390.0,0.47916579]
[1749880166453,0.54590097,105400.0,105390.0,0.49694532]
[1749880167068,0.54590097,105400.0,105390.0,0.47916579]
[1749880167270,0.54590097,105400.0,105390.0,0.49694532]
[1749880167486,0.54590097,105400.0,105390.0,0.57281539]
[1749880167824,0.54590097,105400.0,105390.0,0.57281544]
[1749880167957,0.54590097,105400.0,105390.0,0.55503107]
[1749880168369,0.54590097,105400.0,105390.0,0.57281538]
[1749880168585,0.055383,105400.0,105390.0,0.57281538]
[1749880168814,0.54590097,105400.0,105390.0,0.57281538]
[1749880169018,0.54590097,105400.0,105390.0,0.57281537]
[1749880169216,0.54590097,105400.0,105390.0,0.57281535]
[1749880169420,0.54590097,105400.0,105390.0,0.57281525]
[1749880169646,0.54590097,105400.0,105390.0,0.57281526]
[1749880169853,0.54590097,105400.0,105390.0,0.57281525]
[1749880170405,0.54590097,105400.0,105390.0,0.55503107]
[1749880170550,0.54590097,105400.0,105390.0,0.57281525]
[1749880170761,0.54590097,105400.0,105390.0,0.55503107]
[1749880170961,0.54590097,105400.0,105390.0,0.57281509]
[1749880172498,0.54590097,105400.0,105390.0,0.57281537]
[1749880174220,0.56120097,105400.0,105390.0,0.40183107]
[1749880174438,0.57068791,105400.0,105390.0,0.57305529]
[1749880174651,0.58017476,105400.0,105390.0,0.55527107]
[1749880175126,0.070683,105400.0,105390.0,0.5730554]
[1749880175334,0.08016985,105400.0,105390.0,0.57305507]
[1749880175548,0.57068782,105400.0,105390.0,0.55527107]
[1749880175758,0.57068782,105400.0,105390.0,0.57305496]
[1749880175966,0.57068782,105400.0,105390.0,0.57305503]
[1749880176226,0.57068782,105400.0,105390.0,0.57305549]
[1749880176436,0.57068782,105400.0,105390.0,0.55527107]
[1749880176619,0.57068782,105400.0,105390.0,0.57305557]
[1749880176825,0.57068782,105400.0,105390.0,0.55527107]
[1749880176995,0.57068782,105400.0,105390.0,0.57305557]
[1749880177407,0.57068782,105400.0,105390.0,0.57305558]
[1749880177848,0.58017494,105400.0,105390.0,0.57305559]
[1749880178070,0.57068782,105400.0,105390.0,0.55527107]
[1749880178222,0.57068782,105400.0,105390.0,0.57305559]
[1749880179071,0.57068782,105400.0,105390.0,0.55527107]
[1749880179306,0.58017494,105400.0,105390.0,0.55527107]
[1749880179521,0.57068782,105400.0,105390.0,0.57305559]
[1749880180186,0.56120097,105400.0,105390.0,0.55527107]
[1749880180390,0.570688,105400.0,105390.0,0.57305559]
[1749880180604,0.57068791,105400.0,105390.0,0.57305559]
[1749880180832,0.57068791,105400.0,105390.0,0.47940579]
[1749880180833,0.58017503,105400.0,105390.0,0.47940579]
[1749880181054,0.66855091,105400.0,105390.0,0.47944579]
[1749880181309,0.67803839,105400.0,105390.0,0.48778277]
[1749880181523,0.66855091,105400.0,105390.0,0.49727142]
[1749880181732,0.68752578,105400.0,105390.0,0.49727142]
[1749880182160,0.68752578,105400.0,105390.0,0.47948579]
[1749880182377,0.6780383,105400.0,105390.0,0.49727174]
[1749880182599,0.68752578,105400.0,105390.0,0.47952579]
[1749880182790,0.6780383,105400.0,105390.0,0.49731174]
[1749880183217,0.66855091,105400.0,105390.0,0.47952579]
[1749880183732,0.6780383,105400.0,105390.0,0.47952579]
[1749880184042,0.6780383,105400.0,105390.0,0.49731092]
[1749880184251,0.67803839,105400.0,105390.0,0.49731092]
[1749880184457,0.66855091,105400.0,105390.0,0.49731092]
[1749880184667,0.66855091,105400.0,105390.0,0.49731116]
[1749880185305,0.6780383,105400.0,105390.0,0.49731116]
[1749880185515,0.66855091,105400.0,105390.0,0.49731116]
[1749880185725,0.67803839,105400.0,105390.0,0.49731116]
[1749880185935,0.66855091,105400.0,105390.0,0.47952579]
[1749880186152,0.66855091,105400.0,105390.0,0.49731116]
[1749880186390,0.66855091,105400.0,105390.0,0.47952579]
[1749880186604,0.66855091,105400.0,105390.0,0.49731116]
[1749880187025,0.66855091,105400.0,105390.0,0.47952579]
[1749880187258,0.67803839,105400.0,105390.0,0.49731116]
[1749880187517,0.6780383,105400.0,105390.0,0.49731116]
[1749880187744,0.6780383,105400.0,105390.0,0.47952579]
[1749880187951,0.6780383,105400.0,105390.0,0.47948579]
[1749880188159,0.6780383,105400.0,105390.0,0.49727116]
[1749880188379,0.6780383,105400.0,105390.0,0.47948579]
[1749880189217,0.6780383,105400.0,105390.0,0.49727116]
[1749880189422,0.6780383,105400.0,105390.0,0.47948579]
[1749880189634,0.6780383,105400.0,105390.0,0.49727116]
[1749880190698,0.6780383,105400.0,105390.0,0.47948579]
[1749880190872,0.6780383,105400.0,105390.0,0.49727116]
[1749880191378,0.66855091,105400.0,105390.0,0.49727116]
[1749880191645,0.66855091,105400.0,105390.0,0.47948579]
[1749880191867,0.66855091,105400.0,105390.0,0.49727116]
[1749880192521,0.84881765,105400.0,105390.0,0.21904516]
[1749880192722,0.84881765,105400.0,105390.0,0.39150156]
[1749880193143,0.84881765,105400.0,105390.0,0.39147421]
[1749880193343,0.84881765,105400.0,105390.0,0.39147447]
[1749880193555,0.77941664,105400.0,105390.0,0.38320421]
[1749880193767,0.59915098,105400.0,105390.0,0.24748061]
[1749880193970,0.54093575,105400.0,105390.0,0.41044853]
[1749880194180,0.58974332,105400.0,105390.0,0.41044853]
[1749880194427,0.58974332,105400.0,105390.0,0.41044854]
[1749880195058,0.58974332,105400.0,105390.0,0.39269214]
[1749880195268,0.58974332,105400.0,105390.0,0.41044853]
[1749880195473,0.58974332,105400.0,105390.0,0.39269214]
[1749880195692,0.58974332,105400.0,105390.0,0.41044854]
[1749880196166,0.58974332,105400.0,105390.0,0.41044852]
[1749880196565,0.58974332,105400.0,105390.0,0.41044851]
[1749880197052,0.58974332,105400.0,105390.0,0.39269214]
[1749880197314,0.58974332,105400.0,105390.0,0.41044851]
[1749880197577,0.58974332,105400.0,105390.0,0.41044853]
[1749880198115,0.58974332,105400.0,105390.0,0.39269214]
[1749880198819,0.58974332,105400.0,105390.0,0.41044853]
[1749880199253,0.58974332,105400.0,105390.0,0.39269214]
[1749880199480,0.58974332,105400.0,105390.0,0.41044853]
[1749880200557,0.58974332,105400.0,105390.0,0.41044838]
[1749880202001,0.58974332,105400.0,105390.0,0.41044121]
[1749880202627,0.58974332,105400.0,105390.0,0.39269214]
[1749880202833,0.58974332,105400.0,105390.0,0.41044121]
[1749880203223,0.59923098,105400.0,105390.0,0.41044121]
[1749880204769,0.5409353,105400.0,105390.0,0.41044121]
[1749880204972,0.58974278,105400.0,105390.0,0.41044121]
[1749880205186,0.531448,105400.0,105390.0,0.41044121]
[1749880205497,0.58974278,105400.0,105390.0,0.41045097]
[1749880205905,0.58974278,105400.0,105390.0,0.41045096]
[1749880206513,0.58974278,105400.0,105390.0,0.41047521]
[1749880206699,0.5802553,105400.0,105390.0,0.41047615]
[1749880206978,0.58974278,105400.0,105390.0,0.41047615]
[1749880207194,0.58974278,105400.0,105390.0,0.41047626]
[1749880207364,0.5802553,105400.0,105390.0,0.41047626]
[1749880207565,0.58974278,105400.0,105390.0,0.41047626]
[1749880207779,0.58974278,105400.0,105390.0,0.39269214]
[1749880207979,0.5802553,105400.0,105390.0,0.4104763]
[1749880208192,0.58974278,105400.0,105390.0,0.4104763]
[1749880208569,0.58974278,105400.0,105390.0,0.41047632]
[1749880208957,0.58974278,105400.0,105390.0,0.41047639]
[1749880209176,0.58974278,105400.0,105390.0,0.39269214]
[1749880209389,0.58974278,105400.0,105390.0,0.41047639]
[1749880209875,0.58974278,105400.0,105390.0,0.41047638]
[1749880210562,0.58974278,105400.0,105390.0,0.39269214]
[1749880210691,0.58974278,105400.0,105390.0,0.41047638]
[1749880211058,0.58974278,105400.0,105390.0,0.39269214]
[1749880211215,0.58974278,105400.0,105390.0,0.41047639]
[1749880211557,0.58974278,105400.0,105390.0,0.41047638]
[1749880211767,0.58974278,105400.0,105390.0,0.41047637]
[1749880212216,0.58974278,105400.0,105390.0,0.41047638]
[1749880212422,0.59923035,105400.0,105390.0,0.41047638]
[1749880212626,0.59923035,105400.0,105390.0,0.41047639]
[1749880213327,0.59923035,105400.0,105390.0,0.4104764]
[1749880213981,0.60871801,105400.0,105390.0,0.4104764]
[1749880214589,0.60871801,105400.0,105390.0,0.39269214]
[1749880214830,0.86882984,105400.0,105390.0,0.36430808]
[1749880215037,0.85934254,105400.0,105390.0,0.38209234]
[1749880215254,0.85934254,105400.0,105390.0,0.39158082]
[1749880215456,0.36882457,105400.0,105390.0,0.39158082]
[1749880215662,0.85934254,105400.0,105390.0,0.39158098]
[1749880215864,0.85934254,105400.0,105390.0,0.3737961]
[1749880216065,0.85934254,105400.0,105390.0,0.39158098]
[1749880216382,0.36882457,105400.0,105390.0,0.39158098]
[1749880216584,0.85934254,105400.0,105390.0,0.39158098]
[1749880216990,0.85934254,105400.0,105390.0,0.3737961]
[1749880217217,0.85934254,105400.0,105390.0,0.39158116]
[1749880217430,0.36882457,105400.0,105390.0,0.37379628]
[1749880217635,0.85934254,105400.0,105390.0,0.39158116]
[1749880219630,0.85934254,105400.0,105390.0,0.37379628]
[1749880219835,0.85934254,105400.0,105390.0,0.39158116]
[1749880220338,0.85934254,105400.0,105390.0,0.38328439]
[1749880220497,0.85934254,105400.0,105390.0,0.40106927]
[1749880220851,0.779497,105400.0,105390.0,0.40106927]
[1749880221882,0.779497,105400.0,105390.0,0.22853296]
[1749880222131,0.77000952,105400.0,105390.0,0.39170116]
[1749880222542,0.77000952,105400.0,105390.0,0.39170134]
[1749880222770,0.86598421,105400.0,105390.0,0.39170137]
[1749880222985,0.86598421,105400.0,105390.0,0.37391628]
[1749880223401,0.86598421,105400.0,105390.0,0.39170601]
[1749880223604,0.37546624,105400.0,105390.0,0.39170601]
[1749880223807,0.27949155,105400.0,105390.0,0.39170601]
[1749880224010,0.77000952,105400.0,105390.0,0.39170601]
[1749880224219,0.27949155,105400.0,105390.0,0.39170601]
[1749880224414,0.77000952,105400.0,105390.0,0.39170601]
[1749880224626,0.77000952,105400.0,105390.0,0.39170149]
[1749880225366,0.77000952,105400.0,105390.0,0.39170148]
[1749880225584,0.77000952,105400.0,105390.0,0.39170149]
[1749880225763,0.86598421,105400.0,105390.0,0.39170149]
[1749880225982,0.86598421,105400.0,105390.0,0.39170145]
[1749880226117,0.86598421,105400.0,105390.0,0.39170146]
[1749880226326,0.77000952,105400.0,105390.0,0.39170146]
[1749880226535,0.77000952,105400.0,105390.0,0.37391628]
[1749880226989,0.77000952,105400.0,105390.0,0.39170144]
[1749880227239,0.77000952,105400.0,105390.0,0.39170147]
[1749880227655,0.77000952,105400.0,105390.0,0.40118959]
[1749880227855,0.77000952,105400.0,105390.0,0.38340439]
[1749880228118,0.77000952,105400.0,105390.0,0.40118959]
[1749880228327,0.77000952,105400.0,105390.0,0.38340439]
[1749880228534,0.77000952,105400.0,105390.0,0.39289241]
[1749880228739,0.77000952,105400.0,105390.0,0.41067762]
[1749880230177,0.77000952,105400.0,105390.0,0.4011896]
[1749880230376,0.77000952,105400.0,105390.0,0.41067762]
[1749880231488,0.77000952,105400.0,105390.0,0.25699762]
[1749880231629,0.77000952,105400.0,105390.0,0.41063762]
[1749880231829,0.77000952,105400.0,105390.0,0.39285241]
[1749880232042,0.75470952,105400.0,105390.0,0.41063762]
[1749880232285,0.77130952,105400.0,105390.0,0.41063762]
[1749880232907,0.73198952,105400.0,105390.0,0.41063762]
[1749880233114,0.77138952,105400.0,105390.0,0.41063762]
[1749880233309,0.54223584,105400.0,105390.0,0.39285241]
[1749880233587,0.78087682,105400.0,105390.0,0.41063637]
[1749880233804,0.5911235,105400.0,105390.0,0.41063637]
[1749880234032,0.5911235,105400.0,105390.0,0.41063583]
[1749880234833,0.5911235,105400.0,105390.0,0.39285187]
[1749880235302,0.5911235,105400.0,105390.0,0.41063674]
[1749880236270,0.5911235,105400.0,105390.0,0.41063673]
[1749880236471,0.5745235,105400.0,105390.0,0.41063673]
[1749880236679,0.5745235,105400.0,105390.0,0.39285187]
[1749880236890,0.55837969,105400.0,105390.0,0.39285187]
[1749880237106,0.55837969,105400.0,105390.0,0.41064137]
[1749880237310,0.55837969,105400.0,105390.0,0.39285187]
[1749880237818,0.55837969,105400.0,105390.0,0.41064143]
[1749880238267,0.55837969,105400.0,105390.0,0.39285187]
[1749880238489,0.55837969,105400.0,105390.0,0.41064142]
[1749880238702,0.87517726,105410.0,105400.0,0.21821504]
[1749880238917,0.91457726,105410.0,105400.0,0.23600266]
[1749880239145,0.91457726,105410.0,105400.0,0.21821504]
[1749880239353,0.93354997,105410.0,105400.0,0.23600152]
[1749880239568,0.93354997,105410.0,105400.0,0.21821504]
[1749880239779,0.93354997,105410.0,105400.0,0.22651451]
[1749880239995,0.93454997,105410.0,105400.0,0.22651451]
[1749880240206,0.93454997,105410.0,105400.0,0.20872801]
[1749880240412,1.11479933,105410.0,105400.0,0.22651451]
[1749880242653,1.11479933,105410.0,105400.0,0.20872801]
[1749880243668,0.91557726,105410.0,105400.0,0.20872801]
[1749880243999,0.91557726,105410.0,105400.0,0.22770216]
[1749880244612,1.10531257,105410.0,105400.0,0.21821513]
[1749880245283,1.08911257,105410.0,105400.0,0.21821513]
[1749880246731,1.08911257,105410.0,105400.0,0.20872801]
[1749880246939,1.08911257,105410.0,105400.0,0.20872819]
[1749880247151,1.10511257,105410.0,105400.0,0.20872819]
[1749880247352,1.10511257,105410.0,105400.0,0.21821549]
[1749880249541,1.09562635,105410.0,105400.0,0.21821549]
[1749880249743,1.11112635,105410.0,105400.0,0.20872819]
[1749880249956,1.10163995,105410.0,105400.0,0.1992408]
[1749880251886,1.10163995,105410.0,105400.0,0.3530008]
[1749880252765,0.61112198,105410.0,105400.0,0.3530008]
[1749880252980,1.10163995,105410.0,105400.0,0.3530008]
[1749880254435,1.10163995,105410.0,105400.0,0.36248819]
[1749880255360,1.10163995,105410.0,105400.0,0.3719754]
[1749880262069,0.61112198,105410.0,105400.0,0.3719754]
[1749880262244,1.10163995,105410.0,105400.0,0.3719754]
[1749880263071,1.10163995,105410.0,105400.0,0.38146252]
[1749880263276,1.08613995,105410.0,105400.0,0.38146252]
[1749880265071,1.10223995,105410.0,105400.0,0.20872819]
[1749880265288,1.19838917,105410.0,105400.0,0.3815427]
[1749880265629,1.10223995,105410.0,105400.0,0.3815427]
[1749880270236,0.61172198,105410.0,105400.0,0.3815427]
[1749880270463,1.10223995,105410.0,105400.0,0.3815427]
[1749880278965,1.10223995,105410.0,105400.0,0.37205549]
[1749880284565,1.08613995,105410.0,105400.0,0.3815427]
[1749880285335,0.9153778,105410.0,105400.0,0.3815427]
[1749880285511,1.10511311,105410.0,105400.0,0.3815427]
[1749880285735,1.10511311,105410.0,105400.0,0.39102982]
[1749880287992,1.10511311,105410.0,105400.0,0.39102937]
[1749880291405,1.08911311,105410.0,105400.0,0.39102937]
[1749880295181,1.08911311,105410.0,105400.0,0.38154234]
[1749880295387,1.10551311,105410.0,105400.0,0.38154234]
[1749880296219,0.61499514,105410.0,105400.0,0.38154234]
[1749880296378,1.10551311,105410.0,105400.0,0.38154234]
[1749880299311,1.10551311,105410.0,105400.0,0.39931259]
[1749880300032,1.10551311,105410.0,105400.0,0.38154234]
[1749880300247,1.10551311,105410.0,105400.0,0.39932487]
[1749880300458,1.10551311,105410.0,105400.0,0.39932449]
[1749880300664,1.08911311,105410.0,105400.0,0.38154234]
[1749880300872,1.08911311,105410.0,105400.0,0.39932422]
[1749880301080,1.08911311,105410.0,105400.0,0.39932453]
[1749880301282,1.08911311,105410.0,105400.0,0.38154234]
[1749880301498,1.08911311,105410.0,105400.0,0.39932452]
[1749880301707,0.8993778,105410.0,105400.0,0.38154234]
[1749880301926,0.8993778,105410.0,105400.0,0.4088112]
[1749880302311,0.8993778,105410.0,105400.0,0.39102937]
[1749880302734,0.8993778,105410.0,105400.0,0.40881198]
[1749880302951,0.8993778,105410.0,105400.0,0.40881157]
[1749880303547,0.88989104,105410.0,105400.0,0.40881157]
[1749880304914,0.88989104,105410.0,105400.0,0.39102937]
[1749880305132,0.88989104,105410.0,105400.0,0.40881009]
[1749880305355,0.341,105410.0,105400.0,0.50505185]
[1749880305594,0.88040392,105410.0,105400.0,0.53615094]
[1749880305803,0.87091797,105410.0,105400.0,0.51837113]
[1749880306013,0.88040401,105410.0,105400.0,0.51837113]
[1749880306866,0.88040401,105410.0,105400.0,0.53614867]
[1749880307049,0.88040401,105410.0,105400.0,0.53614851]
[1749880307264,0.001,105410.0,105400.0,0.61452035]
[1749880307478,0.04988595,105410.0,105400.0,0.53614641]
[1749880307691,0.04988595,105410.0,105400.0,0.53614624]
[1749880307904,0.54040392,105410.0,105400.0,0.53614593]
[1749880308362,0.54040392,105410.0,105400.0,0.53614591]
[1749880308566,0.54040392,105410.0,105400.0,0.53614569]
[1749880308991,0.54040392,105410.0,105400.0,0.51837113]
[1749880308992,0.53091797,105410.0,105400.0,0.51837113]
[1749880309209,0.54040401,105410.0,105400.0,0.53614569]
[1749880309842,0.54040401,105410.0,105400.0,0.51837113]
[1749880310074,0.54040401,105410.0,105400.0,0.53614569]
[1749880310283,0.54040401,105410.0,105400.0,0.51837113]
[1749880310733,0.54040401,105410.0,105400.0,0.53614571]
[1749880310955,0.53091797,105410.0,105400.0,0.53614571]
[1749880311173,0.54040392,105410.0,105400.0,0.53614571]
[1749880311402,0.53920392,105410.0,105400.0,0.63229497]
[1749880311611,0.53920392,105410.0,105400.0,0.61452035]
[1749880311826,0.53920392,105410.0,105400.0,0.63229497]
[1749880312082,0.54869005,105410.0,105400.0,0.51837113]
[1749880312306,0.53920392,105410.0,105400.0,0.53614574]
[1749880312512,0.54869005,105410.0,105400.0,0.53614574]
[1749880312726,0.35897127,105420.0,105410.0,0.21819451]
[1749880312943,0.90782087,105420.0,105410.0,0.23339451]
[1749880313157,0.90782087,105420.0,105410.0,0.25116896]
[1749880313377,0.90782087,105420.0,105410.0,0.21819451]
[1749880313592,0.90782087,105420.0,105410.0,0.23596896]
[1749880313808,0.90782087,105420.0,105410.0,0.23596897]
[1749880314565,0.4173029,105420.0,105410.0,0.23596897]
[1749880314745,0.90782087,105420.0,105410.0,0.23596895]
[1749880314986,0.90982087,105420.0,105410.0,0.23596895]
[1749880315841,1.09953819,105420.0,105410.0,0.22648282]
[1749880316048,1.09953819,105420.0,105410.0,0.21819469]
[1749880316252,1.09953819,105420.0,105410.0,0.23596908]
[1749880316457,1.09953819,105420.0,105410.0,0.23596907]
[1749880316658,1.09953819,105420.0,105410.0,0.23596908]
[1749880317068,1.09953819,105420.0,105410.0,0.21819469]
[1749880317696,1.0900526,105420.0,105410.0,0.23596906]
[1749880317910,1.60128489,105420.0,105410.0,0.22648293]
[1749880318118,1.60128489,105420.0,105410.0,0.20870856]
[1749880318325,1.60128489,105420.0,105410.0,0.2359702]
[1749880318739,1.60128489,105420.0,105410.0,0.21819505]
[1749880319134,1.59179912,105420.0,105410.0,0.2359702]
[1749880319347,1.59179912,105420.0,105410.0,0.38973017]
[1749880319544,1.59179912,105420.0,105410.0,0.38973016]
[1749880319755,1.59179912,105420.0,105410.0,0.37195505]
[1749880319963,1.59179912,105420.0,105410.0,0.38973016]
[1749880320174,1.59179912,105420.0,105410.0,0.37195505]
[1749880320589,1.59179912,105420.0,105410.0,0.38971778]
[1749880320938,1.59179912,105420.0,105410.0,0.37195505]
[1749880321109,1.59179912,105420.0,105410.0,0.38971778]
[1749880321320,1.59179912,105420.0,105410.0,0.38971715]
[1749880321966,1.59179912,105420.0,105410.0,0.38971728]
[1749880322375,1.59179912,105420.0,105410.0,0.38971667]
[1749880322587,1.59179912,105420.0,105410.0,0.3897168]
[1749880322857,1.59179912,105420.0,105410.0,0.38971676]
[1749880323093,1.59179912,105420.0,105410.0,0.38971675]
[1749880323350,1.59179912,105420.0,105410.0,0.3897159]
[1749880323809,1.59179912,105420.0,105410.0,0.37187505]
[1749880324026,1.59179912,105420.0,105410.0,0.3896359]
[1749880324253,1.59179912,105420.0,105410.0,0.37187505]
[1749880324472,1.59179912,105420.0,105410.0,0.38963553]
[1749880324736,1.59179912,105420.0,105410.0,0.38963559]
[1749880325420,1.59179912,105420.0,105410.0,0.37187505]
[1749880325687,1.59179912,105420.0,105410.0,0.38963433]
[1749880326417,1.59179912,105420.0,105410.0,0.38963272]
[1749880326844,0.61076318,105420.0,105410.0,0.37187505]
[1749880327063,1.59179912,105420.0,105410.0,0.38963272]
[1749880327384,1.59179912,105420.0,105410.0,0.38963038]
[1749880327604,1.59179912,105420.0,105410.0,0.37187505]
[1749880327821,1.59179912,105420.0,105410.0,0.3896305]
[1749880328255,1.59179912,105420.0,105410.0,0.3896274]
[1749880328486,1.59179912,105420.0,105410.0,0.37187505]
[1749880328702,1.59179912,105420.0,105410.0,0.3896274]
[1749880329527,1.59179912,105420.0,105410.0,0.37065433]
[1749880329707,1.58231326,105420.0,105410.0,0.37065433]
[1749880330466,1.58231326,105420.0,105410.0,0.3706496]
[1749880332132,1.58231326,105420.0,105410.0,0.35290198]
[1749880332741,1.58231326,105420.0,105410.0,0.3706496]
[1749880333784,1.58231326,105420.0,105410.0,0.35290198]
[1749880333997,1.58231326,105420.0,105410.0,0.3706496]
[1749880334412,1.58231326,105420.0,105410.0,0.34341531]
[1749880334630,1.58231326,105420.0,105410.0,0.36116311]
[1749880334908,1.58231326,105420.0,105410.0,0.35290207]
[1749880335135,1.58231326,105420.0,105410.0,0.37064993]
[1749880335589,1.58231326,105420.0,105410.0,0.37067911]
[1749880336638,1.58231326,105420.0,105410.0,0.38016578]
[1749880337298,1.58231326,105420.0,105410.0,0.36238874]
[1749880337508,1.58231326,105420.0,105410.0,0.38016441]
[1749880337721,1.58231326,105420.0,105410.0,0.38016448]
[1749880338240,1.58231326,105420.0,105410.0,0.3801645]
[1749880338601,1.58231326,105420.0,105410.0,0.36238874]
[1749880338808,1.58231326,105420.0,105410.0,0.3801645]
[1749880339697,1.58239326,105420.0,105410.0,0.3801645]
[1749880340522,1.58239326,105420.0,105410.0,0.36238874]
[1749880340711,1.56739326,105420.0,105410.0,0.3801645]
[1749880341056,0.59012859,105420.0,105410.0,0.39913739]
[1749880341269,1.08064656,105420.0,105410.0,0.38913757]
[1749880341689,1.08064656,105420.0,105410.0,0.38913756]
[1749880341892,1.08064656,105420.0,105410.0,0.38913755]
[1749880342103,1.61765931,105420.0,105410.0,0.37965106]
[1749880342333,1.64925931,105420.0,105410.0,0.37965106]
[1749880343039,1.64925931,105420.0,105410.0,0.36187532]
[1749880343286,1.64925931,105420.0,105410.0,0.37965106]
[1749880343775,1.63977381,105420.0,105410.0,0.37965106]
[1749880344019,1.63977381,105420.0,105410.0,0.38901755]
[1749880344709,1.63977381,105420.0,105410.0,0.38901803]
[1749880345138,1.63977381,105420.0,105410.0,0.3890181]
[1749880346001,1.63977381,105420.0,105410.0,0.37124181]
[1749880346217,1.63977381,105420.0,105410.0,0.38901809]
[1749880346674,1.63977381,105420.0,105410.0,0.37124181]
[1749880347089,1.63977381,105420.0,105410.0,0.38901808]
[1749880347994,1.63977381,105420.0,105410.0,0.36111158]
[1749880348221,1.63977381,105420.0,105410.0,0.37059848]
[1749880348436,1.63028804,105420.0,105410.0,0.18086317]
[1749880348641,1.63028804,105420.0,105410.0,0.37059859]
[1749880349064,1.63028804,105420.0,105410.0,0.38008526]
[1749880349268,1.63028804,105420.0,105410.0,0.38008528]
[1749880349691,1.63028804,105420.0,105410.0,0.38008119]
[1749880350103,1.63028804,105420.0,105410.0,0.16308676]
[1749880350532,1.63028804,105420.0,105410.0,0.18085877]
[1749880351146,1.63028804,105420.0,105410.0,0.16308676]
[1749880351453,1.63028804,105420.0,105410.0,0.18085877]
[1749880351677,1.63028804,105420.0,105410.0,0.18089877]
[1749880351874,1.63028804,105420.0,105410.0,0.16312676]
[1749880352082,0.00948658,105410.0,105400.0,0.33045653]
[1749880352315,1.10033007,105420.0,105410.0,0.20870874]
[1749880352524,1.13977007,105420.0,105410.0,0.01777209]
[1749880352764,0.00948649,105410.0,105400.0,0.49354338]
[1749880352971,0.0094864,105410.0,105400.0,0.5113155]
[1749880353178,0.01897289,105410.0,105400.0,0.51131555]
[1749880353393,0.11512211,105410.0,105400.0,0.51131555]
[1749880353596,0.60564008,105410.0,105400.0,0.51131555]
[1749880354035,0.60564008,105410.0,105400.0,0.49354338]
[1749880354448,0.60564008,105410.0,105400.0,0.51131555]
[1749880354657,0.61512639,105410.0,105400.0,0.49354338]
[1749880354834,0.61512639,105410.0,105400.0,0.51131555]
[1749880355490,0.62461261,105410.0,105400.0,0.51131555]
[1749880355904,0.62461261,105410.0,105400.0,0.49354338]
[1749880356084,0.62461261,105410.0,105400.0,0.51131555]
[1749880356287,0.62461261,105410.0,105400.0,0.49354338]
[1749880356461,0.62461261,105410.0,105400.0,0.51131555]
[1749880357201,0.62461261,105410.0,105400.0,0.51131576]
[1749880357424,0.33331653,105410.0,105400.0,0.32096959]
[1749880357637,0.62461261,105410.0,105400.0,0.50178904]
[1749880358097,0.62461261,105410.0,105400.0,0.50178903]
[1749880358300,0.62461261,105410.0,105400.0,0.48401662]
[1749880358508,0.62461261,105410.0,105400.0,0.50178903]
[1749880358930,0.62461261,105410.0,105400.0,0.48401662]
[1749880359165,0.62461261,105410.0,105400.0,0.50178928]
[1749880359383,0.52846339,105410.0,105400.0,0.50178946]
[1749880359593,0.52846339,105410.0,105400.0,0.48401662]
[1749880360003,0.52846339,105410.0,105400.0,0.5017894]
[1749880360984,0.52846339,105410.0,105400.0,0.50179012]
[1749880361788,0.52846339,105410.0,105400.0,0.48401662]
[1749880361917,0.52846339,105410.0,105400.0,0.50179012]
[1749880362121,0.52846339,105410.0,105400.0,0.48401662]
[1749880362547,0.52846339,105410.0,105400.0,0.50179012]
[1749880363156,0.62461261,105410.0,105400.0,0.48401662]
[1749880363464,0.62461261,105410.0,105400.0,0.50179012]
[1749880363918,0.62461261,105410.0,105400.0,0.48401662]
[1749880364067,0.62461261,105410.0,105400.0,0.50179012]
[1749880364274,0.63409919,105410.0,105400.0,0.50179012]
[1749880364704,0.63409919,105410.0,105400.0,0.48401662]
[1749880365084,0.63409919,105410.0,105400.0,0.50179012]
[1749880365564,0.63409919,105410.0,105400.0,0.48579012]
[1749880366010,0.63409919,105410.0,105400.0,0.48579071]
[1749880366987,0.67349919,105410.0,105400.0,0.48579071]
[1749880367222,0.67349919,105410.0,105400.0,0.46801662]
[1749880367639,0.67349919,105410.0,105400.0,0.48579464]
[1749880367848,0.67349919,105410.0,105400.0,0.46801662]
[1749880368062,0.87626233,105410.0,105400.0,0.01777802]
[1749880368268,0.87626233,105410.0,105400.0,0.38971508]
[1749880368477,0.87626233,105410.0,105400.0,0.38022816]
[1749880369144,0.87626233,105410.0,105400.0,0.38971564]
[1749880369569,0.87626233,105410.0,105400.0,0.37193603]
[1749880369814,0.87626233,105410.0,105400.0,0.38971604]
[1749880370013,0.87626233,105410.0,105400.0,0.37193603]
[1749880370220,0.87626233,105410.0,105400.0,0.38971606]
[1749880370640,0.87626233,105410.0,105400.0,0.39920345]
[1749880371077,0.87626233,105410.0,105400.0,0.38142342]
[1749880371281,0.87626233,105410.0,105400.0,0.39920345]
[1749880371463,0.87626233,105410.0,105400.0,0.38142342]
[1749880371763,0.87626233,105410.0,105400.0,0.39920345]
[1749880371971,0.87626233,105410.0,105400.0,0.38142342]
[1749880372231,0.87626233,105410.0,105400.0,0.39920345]
[1749880372655,0.87626233,105410.0,105400.0,0.38142342]
[1749880372861,0.87626233,105410.0,105400.0,0.39920345]
[1749880373280,0.87626233,105410.0,105400.0,0.39091072]
[1749880373892,0.87626233,105410.0,105400.0,0.40869075]
[1749880374307,0.87626233,105410.0,105400.0,0.39091072]
[1749880374714,0.87626233,105410.0,105400.0,0.40869075]
[1749880375356,0.87626233,105410.0,105400.0,0.40869073]
[1749880375563,0.87626233,105410.0,105400.0,0.39091072]
[1749880375769,0.87626233,105410.0,105400.0,0.40869075]
[1749880377579,0.87626233,105410.0,105400.0,0.39091072]
[1749880377735,0.87626233,105410.0,105400.0,0.40869075]